Workbook

Sheet Gastos mensuales
B1: GASTOS DOMÉSTICOS MENSUALES
B3: TOTAL GASTOS | C3: =D16+D27+D34+I11+I17+I23 -> 2,137 €
B5: Vivienda | C5: Coste previsto | D5: Coste real | E5: Diferencia | G5: Niños | H5: Coste previsto | I5: Coste real | J5: Diferencia
B6: Hipoteca o alquiler | C6: 1,000 € | D6: 1,000 € | E6: 0.00 € | G6: Ropa | I6: 150 € | J6: -150.00 €
B7: 2ª hipoteca o alquiler | C7: 0 € | D7: 0 € | E7: 0.00 € | G7: Colegio | I7: 100 € | J7: -100.00 €
B8: Teléfono | C8: 54 € | D8: 100 € | E8: -46.00 € | G8: Material escolar | I8: 38 € | J8: -38.00 €
B9: Electricidad | C9: 44 € | D9: 56 € | E9: -12.00 € | G9: Juegos y juguetes | J9: 0.00 €
B10: Gas | C10: 22 € | D10: 28 € | E10: -6.00 € | G10: Otros | J10: 0.00 €
B11: Agua y alcantarillado | C11: 8 € | D11: 8 € | E11: 0.00 € | H11: TOTAL | I11: =SUM(I6:I10) -> 288 €
B12: TV por cable | C12: 34 € | D12: 34 € | E12: 0.00 €
B13: Basura | C13: 10 € | D13: 10 € | E13: 0.00 € | G13: Mascotas | H13: Coste previsto | I13: Coste real | J13: Diferencia
B14: Suministros | C14: 0 € | D14: 0 € | E14: 0.00 € | G14: Comida | I14: 50 € | J14: -50.00 €
B15: Otros | C15: 0 € | D15: 0 € | E15: 0.00 € | G15: Médicos | J15: 0.00 €
C16: TOTAL | D16: =SUM(D6:D15) -> 1,236 € | G16: Otros | J16: 0.00 €
H17: TOTAL | I17: =SUM(I14:I16) -> 50 €
B18: Transportes | C18: Coste previsto | D18: Coste real | E18: Diferencia
B19: Credito coche 1 | D19: 230 € | E19: -230.00 € | G19: Otros / entretenimiento | H19: Coste previsto | I19: Coste real | J19: Diferencia
B20: Credito coche 2 | E20: 0.00 € | G20: Gimnasio | I20: 48 € | J20: -48.00 €
B21: Gastos de taxi/autobús | D21: 55 € | E21: -55.00 € | G21: Peluquería | I21: 150 € | J21: -150.00 €
B22: Seguro | E22: 0.00 € | G22: Otros | J22: 0.00 €
B23: Permisos | E23: 0.00 € | H23: TOTAL | I23: =SUM(I20:I22) -> 198 €
B24: Gasolina | D24: 80 € | E24: -80.00 €
B25: Revisiones coche | E25: 0.00 €
B26: Otros | E26: 0.00 €
C27: TOTAL | D27: =SUM(D19:D26) -> 365 €
B29: Seguros | C29: Coste previsto | D29: Coste real | E29: Diferencia
B30: Hogar | E30: 0.00 €
B31: Vida | E31: 0.00 €
B32: Salud | E32: 0.00 €
B33: Otros | E33: 0.00 €
C34: TOTAL | D34: =SUM(D30:D33) -> 0 €

Sheet Ingresos mensuales
B1: INGRESOS MENSUALES
B3: TOTAL INGRESOS | C3: =D9+D15 -> 3,000 €
B5: Conyuge 1 | C5: Ingreso previsto | D5: Ingreso real | E5: Diferencia
B6: Nómina | C6: 1,500 € | D6: 1,500 € | E6: 0 €
B7: Comisiones | C7: 300 € | D7: 300 € | E7: 0 €
B8: Otros | E8: 0 €
C9: TOTAL | D9: =SUM(D6:D8) -> 1,800 €
B11: Conyuge 2 | C11: Ingreso previsto | D11: Ingreso real | E11: Diferencia
B12: Nómina | C12: 1,200 € | D12: 1,200 € | E12: 0 €
B13: Comisiones | E13: 0 €
B14: Otros | E14: 0 €
C15: TOTAL | D15: =SUM(D12:D14) -> 1,200 €

Sheet Prev. gastos anuales
B1: PREVISIÓN DE GASTOS ANUALES
C4: ENERO | D4: FEBRERO | E4: MARZO | F4: ABRIL | G4: MAYO | H4: JUNIO | I4: JULIO | J4: AGOSTO | K4: SEPTIEMBRE | L4: OCTUBRE | M4: NOVIEMBRE | N4: DICIEMBRE | O4: TOTAL
B5: HIPOTECA | C5: ='Gastos mensuales'!D16 -> 1,236.0 € | O5: =SUM(C5:N5) -> 1,236.0 €
B6: SEGUROS | C6: ='Gastos mensuales'!D34 -> 0.0 € | O6: =SUM(C6:N6) -> 0.0 €
B7: TRANSPORTES | C7: ='Gastos mensuales'!D27 -> 365.0 € | O7: 365.0 €
B8: NIÑOS | C8: ='Gastos mensuales'!I11 -> 288.0 € | O8: 288.0 €
B9: MASCOTAS | C9: ='Gastos mensuales'!I17 -> 50.0 € | O9: 50.0 €
B10: ENTRETENIMIENTO | C10: ='Gastos mensuales'!I23 -> 198.0 € | O10: 198.0 €
B11: IMPREVISTOS | C11: ='Gastos mensuales'!D34 -> 0.0 € | O11: 0.0 €
C12: =SUM(C5:C11) -> 2,137.0 € | D12: =SUM(D8:D11) -> 0.0 € | E12: 0.0 € | F12: 0.0 € | G12: 0.0 € | H12: 0.0 € | I12: 0.0 € | J12: 0.0 € | K12: 0.0 € | L12: 0.0 € | M12: 0.0 € | N12: 0.0 €

Sheet Prev. ingresos anuales
B1: PREVISIÓN DE INGRESOS ANUALES
D4: ENERO | E4: FEBRERO | F4: MARZO | G4: ABRIL | H4: MAYO | I4: JUNIO | J4: JULIO | K4: AGOSTO | L4: SEPTIEMBRE | M4: OCTUBRE | N4: NOVIEMBRE | O4: DICIEMBRE | P4: TOTALES
B5: CONYUGE1 | C5: NOMINA | D5: 1,500.0 € | E5: 1,500.0 € | F5: 1,500.0 € | G5: 1,500.0 € | H5: 1,500.0 € | I5: 1,500.0 € | J5: 1,500.0 € | K5: 1,500.0 € | L5: 1,500.0 € | M5: 1,500.0 € | N5: 1,500.0 € | O5: 1,500.0 € | P5: 18,000.0 € | Q5: =P5+P6 -> 20,300.0 €
C6: COMISIONES / OTROS | E6: 300.0 € | G6: 450.0 € | H6: 200.0 € | I6: 150.0 € | J6: 200.0 € | L6: 600.0 € | M6: 200.0 € | N6: 200.0 € | P6: 2,300.0 €
B7: CONYUGE 2 | C7: NOMINA | D7: 1,200.0 € | E7: 1,200.0 € | F7: 1,200.0 € | G7: 1,200.0 € | H7: 1,200.0 € | I7: 1,200.0 € | J7: 1,200.0 € | K7: 1,200.0 € | L7: 1,200.0 € | M7: 1,200.0 € | N7: 1,200.0 € | O7: 1,200.0 € | P7: 14,400.0 € | Q7: =P7+P8 -> 16,200.0 €
C8: COMISIONES / OTROS | J8: 900.0 € | O8: 900.0 € | P8: 1,800.0 €
C9: TOTAL | D9: =SUM(D5:D8) -> 2,700.0 € | E9: 3,000.0 € | F9: 2,700.0 € | G9: 3,150.0 € | H9: 2,900.0 € | I9: 2,850.0 € | J9: 3,800.0 € | K9: 2,700.0 € | L9: 3,300.0 € | M9: 2,900.0 € | N9: 2,900.0 € | O9: 3,600.0 € | P9: =(Q5+Q7) -> 36,500.0 €
